fUST/lending_fUST_20250926
["ID","MTS","AMOUNT","RATE_DAILY","PERIOD"]
[387802183,1758882644380,-480.0,0.00038356,30]
[387802185,1758882644390,-481.24328796,0.00038356,30]
[387802187,1758882644399,-488.5416219,0.00038356,30]
[387802189,1758882644408,-480.0,0.00038356,30]
[387802191,1758882644417,-463.78622217,0.00038356,30]
[387802193,1758882644426,-480.0,0.00038356,30]
[387802195,1758882644435,-480.0,0.00038356,30]
[387802197,1758882644444,-480.0,0.00038356,30]
[387802199,1758882644453,-480.0,0.00038356,30]
[387802201,1758882644463,-480.0,0.00038356,30]
[387802203,1758882644471,-557.46,0.00038356,30]
[387802205,1758882644481,-480.0,0.00038356,30]
[387802207,1758882644490,-482.71125195,0.00038356,30]
[387802209,1758882644499,-480.0,0.00038356,30]
[387802211,1758882644507,-549.46,0.00038356,30]
[387802213,1758882644517,-829.69,0.00038356,30]
[387802215,1758882644527,-480.0,0.00038356,30]
[387802217,1758882644536,-480.0,0.00038356,30]
[387802219,1758882644545,-480.0,0.00038356,30]
[387802221,1758882644555,-480.0,0.00038356,30]
[387802223,1758882644564,-480.0,0.00038356,30]
[387802225,1758882644573,-480.0,0.00038356,30]
[387802227,1758882644582,-480.0,0.00038356,30]
[387802229,1758882644591,-480.0,0.00038356,30]
[387802231,1758882644600,-319.99189089,0.00038356,30]
[387802233,1758882644610,-480.0,0.00038356,30]
[387802235,1758882644619,-480.0,0.00038356,30]
[387802237,1758882644628,-480.0,0.00038356,30]
[387802239,1758882644637,-480.0,0.00038356,30]
[387802241,1758882644647,-480.0,0.00038356,30]
[387802243,1758882644656,-480.0,0.00038356,30]
[387802245,1758882644665,-480.0,0.00038356,7]
[387802246,1758882644675,-480.0,0.00038356,30]
[387802248,1758882644685,-480.0,0.00038356,30]
[387802250,1758882644694,-480.0,0.00038356,30]
[387802252,1758882644703,-480.0,0.00038356,30]
[387802254,1758882644717,-492.78299602,0.00038356,30]
[387802256,1758882644726,-480.0,0.00038356,30]
[387802258,1758882644735,-480.0,0.00038356,30]
[387802260,1758882644744,-480.0,0.00038356,30]
[387802262,1758882644753,-179.97116076,0.00038356,30]
[387802264,1758882644763,-614.09653509,0.00038356,30]
[387802266,1758882644772,-480.0,0.00038356,30]
[387802268,1758882644781,-480.0,0.00038356,30]
[387802270,1758882644792,-213.73357879,0.00038356,30]
[387802272,1758882644803,-480.0,0.00038356,30]
[387802274,1758882644812,-480.0,0.00038356,30]
[387802276,1758882644821,-480.0,0.00038356,30]
[387802278,1758882644830,-480.0,0.00038356,30]
[387802280,1758882644840,-480.0,0.00038356,30]
[387802282,1758882644849,-422.5909203,0.00038356,30]
[387802284,1758882644858,-480.0,0.00038356,30]
[387802286,1758882644867,-485.02326311,0.00038356,30]
[387802288,1758882644876,-480.0,0.00038356,30]
[387802290,1758882644885,-480.0,0.00038356,30]
[387802292,1758882644894,-484.97151954,0.00038356,30]
[387802294,1758882644904,-885.55,0.00038356,30]
[387802296,1758882644915,-480.0,0.00038356,30]
[387802298,1758882644924,-480.0,0.00038356,30]
[387802300,1758882644934,-480.0,0.00038356,30]
[387802301,1758882644943,-480.0,0.00038356,30]
[387802303,1758882644952,-480.0,0.00038356,30]
[387802305,1758882644962,-480.0,0.00038356,30]
[387802307,1758882644971,-480.0,0.00038356,30]
[387802309,1758882644980,-480.0,0.00038356,30]
[387802311,1758882644991,-480.0,0.00038356,30]
[387802313,1758882645000,-480.0,0.00038356,30]
[387802315,1758882645010,-480.0,0.00038356,30]
[387802317,1758882645019,-163.35392665,0.00038356,30]
[387802329,1758882645118,-480.0,0.00038356,30]
[387802331,1758882645128,-480.0,0.00038356,30]
[387802333,1758882645138,-480.0,0.00038356,30]
[387802335,1758882645147,-480.0,0.00038356,30]
[387802337,1758882645158,-480.0,0.00038356,30]
[387802339,1758882645167,-480.0,0.00038356,30]
[387802341,1758882645179,-480.0,0.00038356,30]
[387802342,1758882645190,-549.17,0.00038356,30]
[387802344,1758882645200,-480.0,0.00038356,30]
[387802346,1758882645209,-480.0,0.00038356,30]
[387802348,1758882645219,-480.0,0.00038356,30]
[387802350,1758882645229,-480.0,0.00038356,30]
[387802352,1758882645238,-480.0,0.00038356,30]
[387802354,1758882645247,-480.0,0.00038356,30]
[387802356,1758882645256,-2669.24,0.00038356,30]
[387802358,1758882645266,-253.37577,0.00038356,12]
[387802360,1758882645275,-520.05,0.00038356,30]
[387802362,1758882645285,-480.0,0.00038356,30]
[387802364,1758882645298,-536.82,0.00038356,30]
[387802366,1758882645307,-568.63,0.00038356,30]
[387802368,1758882645316,-480.0,0.00038356,30]
[387802370,1758882645325,-480.0,0.00038356,30]
[387802372,1758882645335,-484.59328773,0.00038356,30]
[387802374,1758882645344,-480.0,0.00038356,30]
[387802376,1758882645353,-480.0,0.00038356,30]
[387802378,1758882645363,-480.0,0.00038356,30]
[387802380,1758882645373,-3815.23,0.00038356,30]
[387802382,1758882645383,-480.0,0.00038356,30]
[387802384,1758882645393,-482.31158687,0.00038356,30]
[387802386,1758882645402,-480.0,0.00038356,30]
[387802388,1758882645414,-480.0,0.00038356,30]
[387802390,1758882645423,-480.0,0.00038356,30]
[387802392,1758882645433,-480.0,0.00038356,30]
[387802394,1758882645442,-480.0,0.00038356,30]
[387802396,1758882645452,-480.0,0.00038356,30]
[387802398,1758882645460,-480.0,0.00038356,30]
[387802400,1758882645470,-813.76,0.00038356,30]
[387802402,1758882645479,-473.64924866,0.00038356,30]
[387802404,1758882645488,-480.0,0.00038356,30]
[387802406,1758882645498,-1078.33,0.00038356,30]
[387802408,1758882645510,-484.14,0.00038356,30]
[387802410,1758882645529,-480.0,0.00038356,30]
[387802412,1758882645544,-480.0,0.00038356,30]
[387802415,1758882645553,-480.0,0.00038356,30]
[387802417,1758882645563,-1487.18,0.00038356,30]
[387802418,1758882645572,-480.0,0.00038356,30]
[387802420,1758882645581,-480.0,0.00038356,30]
[387802422,1758882645591,-480.0,0.00038356,30]
[387802424,1758882645600,-155.56692337,0.00038356,30]
[387802426,1758882645609,-480.0,0.00038356,30]
[387802428,1758882645618,-480.0,0.00038356,30]
[387802430,1758882645628,-480.0,0.00038356,30]
[387802432,1758882645637,-480.0,0.00038356,30]
[387802434,1758882645647,-480.0,0.00038356,30]
[387802436,1758882645656,-480.0,0.00038356,30]
[387802439,1758882645665,-480.0,0.00038356,30]
[387802441,1758882645675,-482.02437938,0.00038356,30]
[387802442,1758882645684,-480.0,0.00038356,30]
[387802444,1758882645694,-1013.98,0.00038356,30]
[387802446,1758882645703,-482.47690077,0.00038356,30]
[387802448,1758882645712,-480.0,0.00038356,30]
[387802451,1758882645722,-480.0,0.00038356,30]
[387802452,1758882645731,-480.0,0.00038356,30]
[387802454,1758882645740,-481.53871727,0.00038356,7]
[387802456,1758882645750,-699.15,0.00038356,30]
[387802458,1758882645762,-480.0,0.00038356,30]
[387802461,1758882645772,-480.0,0.00038356,30]
[387802463,1758882645782,-480.0,0.00038356,30]
[387802465,1758882645792,-792.69,0.00038356,30]
[387802467,1758882645802,-720.52,0.00038356,30]
[387802469,1758882645812,-480.0,0.00038356,30]
[387802471,1758882645821,-480.0,0.00038356,30]
[387802473,1758882645830,-480.0,0.00038356,30]
[387802475,1758882645840,-480.0,0.00038356,30]
[387802477,1758882645849,-1220.9,0.00038356,30]
[387802479,1758882645859,-887.25,0.00038356,30]
[387802481,1758882645869,-481.32338299,0.00038356,30]
[387802483,1758882645878,-480.0,0.00038356,30]
[387802485,1758882645888,-480.0,0.00038356,30]
[387802487,1758882645897,-487.16782111,0.00038356,30]
[387802488,1758882645906,-484.66075334,0.00038356,30]
[387802490,1758882645915,-480.0,0.00038356,30]
[387802492,1758882645925,-480.0,0.00038356,30]
[387802494,1758882645935,-480.0,0.00038356,30]
[387802496,1758882645944,-480.0,0.00038356,30]
[387802498,1758882645953,-480.0,0.00038356,30]
[387802500,1758882645962,-480.0,0.00038356,30]
[387802502,1758882645972,-480.0,0.00038356,30]
[387802504,1758882645981,-480.0,0.00038356,30]
[387802507,1758882645991,-480.0,0.00038356,30]
[387802508,1758882646000,-480.0,0.00038356,30]
[387802510,1758882646010,-500.0,0.00038356,30]
[387802512,1758882646019,-463.52221133,0.00038356,30]
[387802514,1758882646028,-730.73,0.00038356,30]
[387802516,1758882646038,-554.17,0.00038356,30]
[387802519,1758882646048,-480.0,0.00038356,30]
[387802521,1758882646061,-151.5226087,0.00038356,30]
[387802523,1758882646072,-746.91,0.00038356,30]
[387802525,1758882646082,-533.29,0.00038356,30]
[387802527,1758882646091,-480.0,0.00038356,30]
[387802529,1758882646102,-480.0,0.00038356,30]
[387802530,1758882646112,-480.0,0.00038356,30]
[387802533,1758882646122,-480.0,0.00038356,30]
[387802535,1758882646136,-707.94,0.00038356,30]
[387802536,1758882646146,-480.0,0.00038356,30]
[387802539,1758882646156,-480.0,0.00038356,30]
[387802541,1758882646166,-480.0,0.00038356,30]
[387802543,1758882646175,-703.4,0.00038356,30]
[387802544,1758882646184,-480.0,0.00038356,30]
[387802546,1758882646194,-473.46169683,0.00038356,30]
[387802548,1758882646203,-480.0,0.00038356,30]
[387802550,1758882646213,-950.84,0.00038356,30]
[387802552,1758882646222,-480.0,0.00038356,30]
[387802554,1758882646231,-480.0,0.00038356,30]
[387802556,1758882646240,-480.0,0.00038356,30]
[387802558,1758882646249,-480.0,0.00038356,30]
[387802560,1758882646259,-480.0,0.00038356,30]
[387802562,1758882646268,-480.0,0.00038356,30]
[387802564,1758882646277,-480.0,0.00038356,30]
[387802566,1758882646286,-483.12435058,0.00038356,30]
[387802568,1758882646296,-480.0,0.00038356,30]
[387802570,1758882646305,-788.28,0.00038356,30]
[387802572,1758882646315,-480.0,0.00038356,30]
[387802574,1758882646324,-766.6,0.00038356,30]
[387802576,1758882646333,-480.0,0.00038356,30]
[387802577,1758882646342,-486.69750856,0.00038356,30]
[387802578,1758882646351,-480.0,0.00038356,30]
[387802579,1758882646360,-1703.44,0.00038356,3]
[387802580,1758882646369,-480.0,0.00038356,30]
[387802581,1758882646378,-480.0,0.00038356,30]
[387802582,1758882646388,-480.0,0.00038356,30]
[387802583,1758882646397,-480.0,0.00038356,30]
[387802584,1758882646407,-755.24,0.00038356,30]
[387802585,1758882646418,-731.09,0.00038356,21]
[387802586,1758882646428,-480.0,0.00038356,30]
[387802587,1758882646438,-480.0,0.00038356,30]
[387802588,1758882646447,-480.0,0.00038356,30]
[387802589,1758882646456,-480.0,0.00038356,30]
[387802590,1758882646466,-480.0,0.00038356,30]
[387802591,1758882646475,-480.0,0.00038356,30]
[387802592,1758882646485,-480.0,0.00038356,30]
[387802593,1758882646494,-724.4,0.00038356,30]
[387802594,1758882646503,-860.62,0.00038356,30]
[387802595,1758882646512,-480.0,0.00038356,30]
[387802596,1758882646521,-1078.05,0.00038356,30]
[387802597,1758882646531,-480.0,0.00038356,30]
[387802598,1758882646541,-480.0,0.00038356,30]
[387802599,1758882646550,-480.0,0.00038356,30]
[387802601,1758882646559,-480.0,0.00038356,30]
[387802603,1758882646571,-480.0,0.00038356,30]
[387802605,1758882646581,-480.0,0.00038356,30]
[387802607,1758882646591,-710.79,0.00038356,30]
[387802609,1758882646600,-481.09782976,0.00038356,30]
[387802611,1758882646609,-480.0,0.00038356,30]
[387802613,1758882646618,-480.0,0.00038356,30]
[387802615,1758882646627,-1150.1,0.00038356,30]
[387802617,1758882646636,-497.29,0.00038356,30]
[387802619,1758882646645,-480.0,0.00038356,30]
[387802621,1758882646655,-842.48,0.00038356,30]
[387802624,1758882646665,-480.0,0.00038356,30]
[387802625,1758882646674,-480.0,0.00038356,30]
[387802628,1758882646683,-1085.49,0.00038356,30]
[387802630,1758882646696,-480.0,0.00038356,30]
[387802632,1758882646705,-480.0,0.00038356,30]
[387802634,1758882646715,-480.0,0.00038356,30]
[387802636,1758882646723,-480.0,0.00038356,30]
[387802638,1758882646732,-482.14275731,0.00038356,30]
[387802640,1758882646741,-480.0,0.00038356,30]
[387802642,1758882646750,-480.0,0.00038356,30]
[387802644,1758882646759,-480.0,0.00038356,30]
[387802646,1758882646768,-480.0,0.00038356,30]
[387802648,1758882646777,-480.0,0.00038356,30]
[387802650,1758882646786,-480.0,0.00038356,30]
[387802652,1758882646795,-480.0,0.00038356,30]
[387802654,1758882646806,-3528.1,0.00038356,30]
[387802656,1758882646815,-637.22,0.00038356,30]
[387802658,1758882646825,-942.09,0.00038356,30]
[387802660,1758882646835,-514.07705699,0.00038356,30]
[387802662,1758882646844,-480.0,0.00038356,30]
[387802664,1758882646853,-2328.24,0.00038356,30]
[387802666,1758882646862,-480.0,0.00038356,30]
[387802668,1758882646871,-526.11,0.00038356,30]
[387802670,1758882646880,-480.0,0.00038356,30]
[387802672,1758882646890,-1430.800729,0.00038356,2]
[387802674,1758882646899,-150.0,0.00038373,5]
[387802676,1758882646909,-500.0,0.00038373,5]
[387802678,1758882646919,-500.0,0.00038373,5]
[387802680,1758882646928,-500.74400145,0.00038373,5]
[387802682,1758882646937,-500.8937754,0.00038373,5]
[387802684,1758882646947,-500.0,0.00038373,5]
[387802686,1758882646956,-500.0,0.00038373,5]
[387802688,1758882646965,-503.24530109,0.00038373,5]
[387802690,1758882646974,-953.0,0.000384,2]
[387802692,1758882646986,-181.839249,0.00038427,60]
[387802694,1758882646996,-501.7593719,0.00038444,3]
[387802696,1758882647005,-464.0,0.00038444,3]
[387802698,1758882647014,-5000.0,0.000385,60]
[387802699,1758882647024,-500.0,0.00038609,120]
[387802701,1758882647033,-298.22048776,0.0003863,30]
[387802703,1758882647043,-200.0,0.0003863,30]
[387802705,1758882647055,-480.0,0.0003863,30]
[387802708,1758882647066,-480.0,0.0003863,30]
[387802710,1758882647078,-480.0,0.0003863,30]
[387802712,1758882647087,-614.9634105,0.0003863,30]
[387802714,1758882647098,-456.61071967,0.0003863,30]
[387802716,1758882647107,-480.0,0.0003863,30]
[387802718,1758882647117,-480.0,0.0003863,30]
[387802720,1758882647126,-480.0,0.0003863,30]
[387802722,1758882647135,-512.06906192,0.0003863,30]
[387802724,1758882647146,-480.0,0.0003863,30]
[387802725,1758882647155,-480.0,0.0003863,30]
[387802727,1758882647165,-480.0,0.0003863,30]
[387802729,1758882647174,-480.0,0.0003863,30]
[387802732,1758882647184,-480.0,0.0003863,30]
[387802733,1758882647193,-480.0,0.0003863,30]
[387802735,1758882647202,-480.0,0.0003863,30]
[387802737,1758882647211,-480.0,0.0003863,30]
[387802739,1758882647221,-480.0,0.0003863,30]
[387802741,1758882647231,-480.0,0.0003863,30]
[387802743,1758882647240,-480.0,0.0003863,30]
[387802745,1758882647249,-480.0,0.0003863,30]
[387802747,1758882647258,-480.0,0.0003863,30]
[387802749,1758882647267,-480.0,0.0003863,30]
[387802751,1758882647276,-480.0,0.0003863,30]
[387802753,1758882647285,-480.0,0.0003863,30]
[387802755,1758882647295,-480.0,0.0003863,30]
[387802766,1758882647304,-480.0,0.0003863,30]
[387802768,1758882647399,-480.0,0.0003863,30]
[387802770,1758882647408,-557.46,0.0003863,30]
[387802772,1758882647417,-549.46,0.0003863,30]
[387802774,1758882647426,-829.69,0.0003863,30]
[387802776,1758882647435,-480.0,0.0003863,30]
[387802778,1758882647444,-480.0,0.0003863,30]
[387802780,1758882647453,-480.0,0.0003863,30]
[387802782,1758882647462,-480.0,0.0003863,30]
[387802784,1758882647471,-481.28720266,0.0003863,30]
[387802786,1758882647480,-480.0,0.0003863,30]
[387802788,1758882647489,-481.56741764,0.0003863,7]
[387802790,1758882647498,-480.0,0.0003863,30]
[387802792,1758882647507,-452.01798128,0.0003863,30]
[387802794,1758882647516,-480.0,0.0003863,30]
[387802796,1758882647525,-480.0,0.0003863,30]
[387802798,1758882647535,-480.0,0.0003863,30]
[387802800,1758882647543,-480.0,0.0003863,30]
[387802802,1758882647552,-480.0,0.0003863,30]
[387802804,1758882647561,-480.0,0.0003863,30]
[387802806,1758882647570,-480.0,0.0003863,30]
[387802808,1758882647579,-206.5827098,0.0003863,30]
[387802810,1758882647588,-480.0,0.0003863,30]
[387802812,1758882647597,-885.55,0.0003863,30]
[387802813,1758882647606,-501.43350955,0.0003863,30]
[387802815,1758882647616,-480.0,0.0003863,30]
[387802817,1758882647625,-214.98255444,0.0003863,30]
[387802819,1758882647634,-480.0,0.0003863,30]
[387802821,1758882647644,-480.0,0.0003863,30]
[387802823,1758882647653,-480.0,0.0003863,30]
[387802825,1758882647663,-589.95984424,0.0003863,30]
[387802827,1758882647673,-480.0,0.0003863,30]
[387802829,1758882647682,-480.0,0.0003863,30]
[387802831,1758882647692,-480.0,0.0003863,30]
[387802833,1758882647701,-480.0,0.0003863,30]
[387802835,1758882647711,-480.0,0.0003863,30]
[387802837,1758882647720,-549.17,0.0003863,30]
[387802839,1758882647729,-480.0,0.0003863,30]
[387802841,1758882647738,-480.0,0.0003863,30]
[387802843,1758882647747,-480.0,0.0003863,30]
[387802845,1758882647756,-480.0,0.0003863,30]
[387802847,1758882647766,-2669.24,0.0003863,30]
[387802849,1758882647775,-520.05,0.0003863,30]
[387802851,1758882647784,-480.0,0.0003863,30]
[387802853,1758882647793,-536.82,0.0003863,30]
[387802855,1758882647802,-568.63,0.0003863,30]
[387802857,1758882647811,-487.51624194,0.0003863,30]
[387802859,1758882647820,-480.0,0.0003863,30]
[387802861,1758882647829,-480.0,0.0003863,30]
[387802863,1758882647840,-3815.23,0.0003863,30]
[387802865,1758882647849,-480.0,0.0003863,30]
[387802867,1758882647858,-480.0,0.0003863,30]
[387802869,1758882647867,-480.0,0.0003863,30]
[387802871,1758882647876,-510.43302524,0.0003863,30]
[387802873,1758882647885,-813.76,0.0003863,30]
[387802875,1758882647895,-1078.33,0.0003863,30]
[387802877,1758882647904,-484.14,0.0003863,30]
[387802879,1758882647914,-480.0,0.0003863,30]
[387802881,1758882647923,-480.0,0.0003863,30]
[387802883,1758882647932,-1487.18,0.0003863,30]
[387802885,1758882647942,-480.0,0.0003863,30]
[387802887,1758882647950,-480.0,0.0003863,30]
[387802889,1758882647959,-480.0,0.0003863,30]
[387802891,1758882647968,-480.0,0.0003863,30]
[387802893,1758882647977,-480.0,0.0003863,30]
[387802895,1758882647986,-1013.98,0.0003863,30]
[387802897,1758882647995,-480.0,0.0003863,30]
[387802899,1758882648005,-699.15,0.0003863,30]
[387802901,1758882648014,-480.0,0.0003863,30]
[387802903,1758882648024,-792.69,0.0003863,30]
[387802904,1758882648034,-720.52,0.0003863,30]
[387802907,1758882648044,-483.26599203,0.0003863,30]
[387802909,1758882648057,-480.0,0.0003863,30]
[387802910,1758882648066,-480.0,0.0003863,30]
[387802912,1758882648076,-1220.9,0.0003863,30]
[387802914,1758882648085,-887.25,0.0003863,30]
[387802916,1758882648096,-480.0,0.0003863,30]
[387802918,1758882648105,-480.0,0.0003863,30]
[387802920,1758882648114,-480.0,0.0003863,30]
[387802922,1758882648124,-480.0,0.0003863,30]
[387802924,1758882648133,-480.0,0.0003863,30]
[387802926,1758882648143,-480.0,0.0003863,30]
[387802928,1758882648153,-480.0,0.0003863,30]
[387802931,1758882648162,-480.0,0.0003863,30]
[387802933,1758882648172,-730.73,0.0003863,30]
[387802935,1758882648181,-554.17,0.0003863,30]
[387802937,1758882648191,-480.0,0.0003863,30]
[387802939,1758882648201,-746.91,0.0003863,30]
[387802941,1758882648211,-533.29,0.0003863,30]
[387802943,1758882648220,-480.0,0.0003863,30]
[387802945,1758882648230,-480.0,0.0003863,30]
[387802947,1758882648239,-480.0,0.0003863,30]
[387802949,1758882648248,-707.94,0.0003863,30]
[387802951,1758882648258,-480.0,0.0003863,30]
[387802953,1758882648267,-480.0,0.0003863,30]
[387802955,1758882648277,-703.4,0.0003863,30]
[387802957,1758882648286,-950.84,0.0003863,30]
[387802959,1758882648295,-480.0,0.0003863,30]
[387802961,1758882648304,-480.0,0.0003863,30]
[387802963,1758882648314,-480.0,0.0003863,30]
[387802965,1758882648323,-312.24667651,0.0003863,30]
[387802967,1758882648333,-788.28,0.0003863,30]
[387802969,1758882648342,-480.0,0.0003863,30]
[387802971,1758882648351,-766.6,0.0003863,30]
[387802973,1758882648361,-1703.44,0.0003863,3]
[387802975,1758882648370,-480.0,0.0003863,30]
[387802977,1758882648379,-480.0,0.0003863,30]
[387802979,1758882648388,-480.0,0.0003863,30]
[387802980,1758882648397,-755.24,0.0003863,30]
[387802982,1758882648406,-731.09,0.0003863,21]
[387802984,1758882648415,-480.0,0.0003863,30]
[387802986,1758882648424,-480.0,0.0003863,30]
[387802988,1758882648433,-480.0,0.0003863,30]
[387802990,1758882648442,-480.0,0.0003863,30]
[387802992,1758882648450,-480.0,0.0003863,30]
[387802994,1758882648459,-724.4,0.0003863,30]
[387802995,1758882648468,-860.62,0.0003863,30]
[387802997,1758882648477,-1078.05,0.0003863,30]
[387802999,1758882648486,-480.0,0.0003863,30]
[387803001,1758882648495,-480.0,0.0003863,30]
[387803003,1758882648505,-480.0,0.0003863,30]
[387803005,1758882648514,-480.0,0.0003863,30]
[387803007,1758882648523,-710.79,0.0003863,30]
[387803009,1758882648532,-480.0,0.0003863,30]
[387803011,1758882648542,-480.0,0.0003863,30]
[387803013,1758882648552,-1150.1,0.0003863,30]
[387803015,1758882648562,-497.29,0.0003863,30]
[387803017,1758882648571,-480.0,0.0003863,30]
[387803019,1758882648581,-842.48,0.0003863,30]
[387803021,1758882648590,-480.0,0.0003863,30]
[387803023,1758882648599,-1085.49,0.0003863,30]
[387803025,1758882648608,-480.0,0.0003863,30]
[387803027,1758882648618,-480.0,0.0003863,30]
[387803029,1758882648627,-151.51185202,0.0003863,30]
[387803031,1758882648637,-480.0,0.0003863,30]
[387803033,1758882648646,-486.77108497,0.0003863,30]
[387803035,1758882648655,-3528.1,0.0003863,30]
[387803037,1758882648665,-637.22,0.0003863,30]
[387803039,1758882648674,-942.09,0.0003863,30]
[387803041,1758882648684,-480.0,0.0003863,30]
[387803043,1758882648693,-2328.24,0.0003863,30]
[387803044,1758882648702,-526.11,0.0003863,30]
[387803046,1758882648711,-300.0,0.00038673,5]
[387803048,1758882648721,-161.05340167,0.00038673,5]
[387803050,1758882648730,-464.94031076,0.000387,120]
[387803052,1758882648740,-200.0,0.00038904,30]
[387803054,1758882648750,-480.0,0.00038904,30]
[387803056,1758882648759,-480.0,0.00038904,30]
[387803058,1758882648769,-480.0,0.00038904,30]
[387803060,1758882648779,-480.0,0.00038904,30]
[387803062,1758882648788,-256.84720001,0.00038904,30]
[387803064,1758882648797,-365.95855477,0.00038904,30]
[387803066,1758882648807,-480.0,0.00038904,30]
[387803068,1758882648816,-608.86904514,0.00038904,30]
[387803070,1758882648825,-480.0,0.00038904,30]
[387803072,1758882648835,-480.0,0.00038904,30]
[387803074,1758882648845,-497.74432723,0.00038904,30]
[387803076,1758882648854,-480.0,0.00038904,30]
[387803078,1758882648863,-480.0,0.00038904,30]
[387803080,1758882648873,-480.0,0.00038904,30]
[387803082,1758882648881,-480.0,0.00038904,30]
[387803083,1758882648890,-487.49975505,0.00038904,30]
[387803085,1758882648900,-480.0,0.00038904,30]
[387803087,1758882648909,-480.0,0.00038904,30]
[387803089,1758882648919,-484.71818594,0.00038904,30]
[387803091,1758882648928,-557.46,0.00038904,30]
[387803093,1758882648938,-549.46,0.00038904,30]
[387803095,1758882648948,-829.69,0.00038904,30]
[387803097,1758882648957,-494.97038218,0.00038904,30]
[387803099,1758882648967,-350.84065855,0.00038904,30]
[387803101,1758882648978,-480.0,0.00038904,30]
[387803103,1758882648988,-480.0,0.00038904,30]
[387803105,1758882648997,-480.0,0.00038904,30]
[387803107,1758882649007,-480.0,0.00038904,30]
[387803109,1758882649016,-480.0,0.00038904,30]
[387803111,1758882649027,-480.0,0.00038904,30]
[387803113,1758882649037,-480.0,0.00038904,30]
[387803115,1758882649047,-480.0,0.00038904,30]
[387803117,1758882649061,-480.0,0.00038904,30]
[387803118,1758882649071,-885.55,0.00038904,30]
[387803120,1758882649080,-480.0,0.00038904,30]
[387803122,1758882649091,-480.0,0.00038904,30]
[387803124,1758882649101,-480.0,0.00038904,30]
[387803125,1758882649111,-489.05381846,0.00038904,30]
[387803126,1758882649121,-480.0,0.00038904,30]
[387803127,1758882649132,-480.0,0.00038904,30]
[387803128,1758882649141,-480.0,0.00038904,30]
[387803129,1758882649150,-480.0,0.00038904,30]
[387803130,1758882649161,-549.17,0.00038904,30]
[387803131,1758882649171,-480.0,0.00038904,30]
[387803132,1758882649181,-480.0,0.00038904,30]
[387803133,1758882649192,-480.0,0.00038904,30]
[387803134,1758882649202,-2669.24,0.00038904,30]
[387803135,1758882649211,-520.05,0.00038904,30]
[387803136,1758882649220,-495.26397762,0.00038904,30]
[387803137,1758882649230,-536.82,0.00038904,30]
[387803138,1758882649239,-568.63,0.00038904,30]
[387803139,1758882649248,-480.0,0.00038904,30]
[387803140,1758882649258,-480.0,0.00038904,30]
[387803141,1758882649267,-3815.23,0.00038904,30]
[387803142,1758882649277,-480.0,0.00038904,30]
[387803143,1758882649286,-480.0,0.00038904,30]
[387803145,1758882649296,-480.0,0.00038904,30]
[387803146,1758882649305,-813.76,0.00038904,30]
[387803148,1758882649315,-1078.33,0.00038904,30]